Cogmind - Beta 10.2 @@@ ROGUE MODE // 2021.12.07 @ 16:21:46 Player: Triffids Result: Destroyed by G-34 Mercenary with Small Laser Performance ------------- Evolutions (1) 500 Regions Visited (3) 600 Robots Destroyed (42) 210 Value Destroyed (1185) 1185 Prototype IDs (2) 40 Alien Tech Used (0) 0 Bonus (-5) -5 TOTAL SCORE: 2530 Bonus ------- Follower Combat Kills 163 Friendly Fire -168 Cogmind --------- Core Integrity 0/400 Matter 300/300 Energy 100/100 System Corruption 9% Temperature Cool (6) Movement Core (150) Ox2 Location -9/Storage Parts ------- > --- POWER (1) -------- (None) > --- PROPULSION (4) --- (None) > --- UTILITY (2) ------ Medium Storage Unit > --- WEAPON (2) ------- (None) > --- INVENTORY (8) ---- Improved Heat Sink Large Battery (300) Medium Matter Pod (100) Drone Bay (2/2) Drone Bay (2/2) Peak State ------------ > --- POWER ------------ Improved Ion Engine > --- PROPULSION ------- Aluminum Leg Carbon-fiber Leg Carbon-fiber Leg Carbon-fiber Leg > --- UTILITY ---------- Medium Storage Unit Light Armor Plating > --- WEAPON ----------- Heavy Assault Rifle EMP Blaster > --- INVENTORY -------- Ion Engine Improved Heat Sink Large Battery Medium Matter Pod Terrain Scan Processor Drone Bay Drone Bay Beam Rifle [Rating: 20] Favorites ----------- Power Ion Engine Engine Ion Engine Propulsion Aluminum Leg Leg Aluminum Leg Utility Medium Storage Unit Device Improved Heat Sink Storage Medium Storage Unit Processor Signal Interpreter Protection Light Armor Plating Weapon Heavy Assault Rifle Energy Gun Medium Laser Energy Cannon Beam Cannon Ballistic Gun Heavy Assault Rifle Launcher Grenade Launcher Build | -11 -10 -9 -9 ------- Run | Scr Mat Mat Sto Slots Evolved 2 | . . 2 . Power . | . . . . Propulsion 2 | . . 2 . Utility . | . . . . Weapon . | . . . . Parts Attached 50 | 6 11 8 25 Power 4 | 1 1 1 1 Engine 4 | 1 1 1 1 Core . | . . . . Reactor . | . . . . Propulsion 16 | 2 4 4 6 Treads . | . . . . Leg 16 | 2 4 4 6 Wheel . | . . . . Hover . | . . . . Flight . | . . . . Utility 13 | 1 3 2 7 Device 4 | . 1 1 2 Storage 2 | 1 1 . . Processor 3 | . 1 1 1 Hackware . | . . . . Protection 4 | . . . 4 Artifact . | . . . . Weapon 17 | 2 3 1 11 Energy Gun 9 | 2 . 1 6 Energy Cannon 1 | . 1 . . Ballistic Gun 4 | . 1 . 3 Ballistic Cannon . | . . . . Launcher 3 | . 1 . 2 Special Weapon . | . . . . Impact Weapon . | . . . . Slashing Weapon . | . . . . Piercing Weapon . | . . . . Special Melee Weapon . | . . . . Unidentified Prototypes . | . . . . Parts Lost 24 | . 4 . 20 Power 3 | . 1 . 2 Propulsion 7 | . . . 7 Utility 2 | . . . 2 Weapon 12 | . 3 . 9 Highest Loss Streak 8 | . 3 . 8 Average Slot Usage (%) 93 | . 90 100 94 Engine 11 | . 13 11 10 Leg 35 | . 28 44 40 Device 5 | . 6 10 3 Storage 12 | . 14 11 11 Protection 3 | . . . 7 Energy Gun 8 | . 7 10 8 Energy Cannon 4 | . 6 11 . Ballistic Gun 5 | . 3 . 10 Launcher 4 | . 9 . 1 Naked Turns . | . . . . Heaviest Build 26 | 13 20 21 26 Greatest Support 55 | 20 20 40 55 Greatest Overweight (x) 3 | 2 1 . 3 Average Overweight (x) . | . . . . Largest Inventory Capacity 8 | 6 8 8 8 Average Capacity 7 | 5 6 8 8 Most Carried 8 | 4 8 8 8 Average Carried 5 | 1 4 6 6 Final Capacity 8 | 6 8 8 8 Final Carried 8 | 2 8 7 5 Class Distribution -------------------- 50% | Scavenger-Mutant 49% | Mutant Dominant Class ---------------- Mutant | -10/Materials Scavenger-Mutant | -9/Materials Scavenger-Mutant | -9/Storage Resources | -11 -10 -9 -9 ----------- Run | Scr Mat Mat Sto Matter Collected 1154 | 222 311 173 448 Remotely . | . . . . Salvage Created 1497 | . 623 212 662 Parts 96 | . 43 13 40 Haulers Intercepted 3 | . 2 . 1 Recyclers Shooed 8 | . 3 . 5 Parts Field Recycled . | . . . . Retrieved Matter . | . . . . Parts Self-Destructed . | . . . . Prevented . | . . . . Kills | -11 -10 -9 -9 ------- Run | Scr Mat Mat Sto Combat Hostiles Destroyed 33 | . 18 4 11 Guns 11 | . 1 1 9 Cannons 8 | . 5 3 . AOE 14 | . 12 . 2 Classes Destroyed 10 | . 6 1 3 Worker 1 | . 1 . . Builder 1 | . . . 1 Hauler 3 | . 2 . 1 Recycler 1 | . . . 1 Operator 1 | . 1 . . Watcher 1 | . 1 . . Swarmer 3 | . 3 . . Grunt 24 | . 15 2 7 Protector 1 | . . . 1 Sentry 5 | . . 2 3 Thug 1 | . . . 1 Best Kill Streak 7 | . 7 2 3 Combat Bots Only 5 | . 5 2 3 Max Kills in Single Turn 3 | . 3 1 2 Gunslinging . | . . . . Exploded 3 | . 3 . 1 Melee . | . . . . Uniques/NPCs Destroyed . | . . . . Combat | -11 -10 -9 -9 -------- Run | Scr Mat Mat Sto Damage Taken 2782 | . 744 135 1903 Core 561 | . 152 14 395 Absorbed by Shields . | . . . . Core Remaining (%) 69 | 100 39 . . Volleys Fired 129 | . 59 16 54 Largest 2 | . 2 2 2 Hottest 110 | . 90 110 98 Shots Fired 221 | . 85 30 106 Gun 149 | . 41 14 94 Cannon 49 | . 32 16 1 Launcher 23 | . 12 . 11 Special . | . . . . Kinetic 72 | . 22 . 50 Thermal 122 | . 47 30 45 Explosive 14 | . 12 . 2 Electromagnetic 13 | . 4 . 9 Robot Hit Streak 16 | . 16 7 7 Robot Miss Streak 6 | . 6 4 4 Penetration Max . | . . . . Secondary Targets 1 | . . . 1 Max Gunslinging Chain 1 | . . . 1 Shots Hit Robots 134 | . 52 20 62 Core Hits 77 | . 35 8 34 Critical Hits 2 | . 1 . 1 Critical Kills 1 | . 1 . . Critical Parts Destroyed 1 | . . . 1 Melee Attacks . | . . . . Impact . | . . . . Slashing . | . . . . Piercing . | . . . . Sneak Attacks . | . . . . Combat Hostiles . | . . . . Follow-up Attacks . | . . . . Damage Inflicted 3433 | . 1569 317 1547 Guns 1330 | . 286 126 918 Cannons 611 | . 420 191 . Explosions 1491 | . 863 . 628 Melee . | . . . . Ramming 1 | . . . 1 Kinetic 668 | . 220 . 448 Thermal 1276 | . 458 317 501 Explosive 1081 | . 863 . 218 Electromagnetic 407 | . 28 . 379 Impact . | . . . . Slashing . | . . . . Piercing . | . . . . Highest Corruption 9 | . . . 9 Average Corruption 8 | . . . 8 Corruption Purged . | . . . . Effects 34 | . . . 34 Message Errors 4 | . . . 4 Matter Fused 8 | . . . 8 Heat Flow Errors 3 | . . . 3 Energy Discharges 4 | . . . 4 Data Loss (minor) 1 | . . . 1 Data Loss (major) 3 | . . . 3 Targeting Errors 10 | . . . 10 Weapon Failures 1 | . . . 1 Overload Shots . | . . . . Overflow Damage 49 | . 26 . 23 Projectiles 13 | . 13 . . Explosions 36 | . 13 . 23 Melee . | . . . . Knockbacks . | . . . . Impact . | . . . . Kinetic . | . . . . Secondary . | . . . . Self-Inflicted Damage 74 | . . . 74 Shots 3 | . . . 3 Rammed 1 | . . . 1 Targets Rammed 1 | . . . 1 Kicked . | . . . . Crushed . | . . . . Highest Temperature 338 | . 230 18 338 Average Temperature 94 | . 100 9 105 Received Heat Transfer 1476 | . 423 57 996 Effects 3 | . 2 . 1 Energy Bleed 1 | . . . 1 Interference 2 | . 2 . . Siege Activations . | . . . . Robots Corrupted . | . . . . Combat Hostiles . | . . . . Parts Fried 2 | . . . 2 Impact Corruptions . | . . . . Robots Melted . | . . . . Combat Hostiles . | . . . . Parts Melted 4 | . 2 2 . Heat Transferred 2752 | . 999 777 976 Parts Sabotaged . | . . . . Parts Stolen . | . . . . Parts Stripped . | . . . . Power Chain Reactions 1 | . . . 1 Missiles Intercepted . | . . . . Alert | -11 -10 -9 -9 ------- Run | Scr Mat Mat Sto Peak Influence 398 | . 346 290 398 Initial 145 | . . 145 122 Average 209 | . 141 210 301 Maximum Alert Level 1 | . 1 1 1 Low Security (%) 41 | 100 61 41 15 Level 1 58 | . 38 58 84 Level 2 . | . . . . Level 3 . | . . . . Level 4 . | . . . . Level 5 . | . . . . High Security . | . . . . Max Security . | . . . . Squads Dispatched 10 | . 5 . 5 Investigation 2 | . 1 . 1 Extermination . | . . . . Reinforcement 5 | . 4 . 1 Assault 2 | . . . 2 Garrison 1 | . . . 1 Intercept . | . . . . Construction Impeded . | . . . . Haulers Reinforced . | . . . . Stealth | -11 -10 -9 -9 --------- Run | Scr Mat Mat Sto Distress Signals 3 | . . . 3 Communications Jammed . | . . . . Distress Signals . | . . . . Times Spotted 73 | . 30 7 36 Peak Tracking Total 12 | . 6 4 12 Tactical Retreats 5 | . 2 1 2 Traps | -11 -10 -9 -9 ------- Run | Scr Mat Mat Sto Traps Triggered 1 | . 1 . . Indirectly . | . . . . Trap Hack Attempts . | . . . . Triggered . | . . . . Disarmed . | . . . . Reprogrammed . | . . . . Reused . | . . . . Traps Extracted . | . . . . Installed . | . . . . Triggered . | . . . . Machines | -11 -10 -9 -9 ---------- Run | Scr Mat Mat Sto Machines Disabled . | . . . . Max in Single Turn . | . . . . Machines Sabotaged . | . . . . Garrisons Compromised . | . . . . Overloaded Fab Kills . | . . . . Fab Network Shutdowns . | . . . . Hacking | -11 -10 -9 -9 --------- Run | Scr Mat Mat Sto Machines Accessed 6 | . 2 1 3 Terminals 5 | . 2 1 2 Fabricators . | . . . . Repair Stations . | . . . . Recycling Units 1 | . . . 1 Scanalyzers . | . . . . Garrison Access . | . . . . Total Hacks 14 | . 6 1 7 Successful 6 | . 4 . 2 Failed 8 | . 2 1 5 Catastrophic . | . . . . Database Lockouts . | . . . . Manual 2 | . 1 1 . Terminals 11 | . 6 1 4 Fabricators . | . . . . Repair Stations . | . . . . Recycling Units 3 | . . . 3 Scanalyzers . | . . . . Garrison Access . | . . . . Terminal Hacks 4 | . 3 . 1 Prototype ID Bank 1 | . 1 . . Open Door 1 | . . . 1 Emergency Access Points 1 | . 1 . . Hauler Manifests 1 | . 1 . . Fabricator Hacks . | . . . . Repair Station Hacks . | . . . . Recycling Unit Hacks 1 | . . . 1 Report Inventory 1 | . . . 1 Scanalyzer . | . . . . Garrison Access Hacks . | . . . . Unauthorized Hacks 1 | . 1 . . Terminals 1 | . 1 . . Track 1 | . 1 . . Fabricators . | . . . . Repair Stations . | . . . . Recycling Units . | . . . . Scanalyzers . | . . . . Garrison Access . | . . . . Data Cores Recovered . | . . . . Used . | . . . . Hacking Detections 5 | . 2 1 2 Full Trace Events 2 | . . . 2 Feedback Events . | . . . . Feedback Blocked . | . . . . Robot Schematics Acquired . | . . . . Robots Built . | . . . . Matter . | . . . . Time . | . . . . Total Robot Build Rating . | . . . . Part Schematics Acquired . | . . . . Parts Built . | . . . . Matter . | . . . . Time . | . . . . Total Part Build Rating . | . . . . Parts Repaired . | . . . . Time . | . . . . Parts Recycled . | . . . . Recycled Matter . | . . . . Retrieved Matter . | . . . . Retrieved Components . | . . . . Parts Scanalyzed . | . . . . Part Schematics Acquired . | . . . . Parts Damaged . | . . . . Bothacking | -11 -10 -9 -9 ------------ Run | Scr Mat Mat Sto Used RIF Installer . | . . . . Robots Hacked . | . . . . Non-combat . | . . . . Combat . | . . . . Robot Hacks Applied . | . . . . Relay Couplers Released . | . . . . Robots Rewired . | . . . . Allies Hacked . | . . . . Hacks Repelled . | . . . . Allies | -11 -10 -9 -9 -------- Run | Scr Mat Mat Sto Total Allies 2 | . . . 2 Largest Group 2 | . . . 2 Highest-Rated Group 62 | . . . 62 Highest-Rated Ally 31 | . . . 31 Total Orders . | . . . . Ally Attacks 24 | . . . 24 Total Damage 333 | . . . 333 Kills 5 | . . . 5 Allies Corrupted . | . . . . Allies Melted . | . . . . Intel | -11 -10 -9 -9 ------- Run | Scr Mat Mat Sto Robot Analysis Total . | . . . . Derelict Logs Recovered . | . . . . Drone Launches . | . . . . Drone Recoveries . | . . . . Exploration | -11 -10 -9 -9 ------------- Run | Scr Mat Mat Sto Turns Passed 1487 | 60 657 155 615 Spaces Moved 787 | 42 368 75 302 Core 24 | 18 . . 6 Treads . | . . . . Legs 763 | 24 368 75 296 Wheels . | . . . . Hover . | . . . . Flight . | . . . . Fastest Speed 50 | 50 120 120 120 Average Speed 120 | 116 120 120 121 Slowest Speed 200 | 150 150 120 200 Overloaded Moves . | . . . . Propulsion Burnouts . | . . . . Robots Hopped . | . . . . Cave-ins Triggered . | . . . . Exploration Rate (%) 37 | 5 65 11 67 Regions Visited 3 Branch Regions 1 Pre-discovered Areas . | . . . . Known Exits Taken 2 | . 1 1 . Unknown Exits Taken 1 | 1 . . . Scrap Searched . | . . . . Spaces Dug . | . . . . Terrain Destroyed 88 | . 63 . 25 Melee . | . . . . Projectile . | . . . . AOE 88 | . 63 . 25 Terrain Rammed . | . . . . Walls Destroyed . | . . . . Machines Disabled . | . . . . Actions | -11 -10 -9 -9 --------- Run | Scr Mat Mat Sto Total 1095 | 51 496 109 439 Wait 89 | . 44 5 40 Move 784 | 41 367 74 302 Hop . | . . . . Pick Up 25 | 4 10 2 9 Fast Attach 9 | 4 1 . 4 Attach 20 | 2 4 3 11 Detach 4 | . . 1 3 Swap 21 | . 6 5 10 Drop 13 | . 5 3 5 Fire 129 | . 59 16 54 Melee . | . . . . Ram . | . . . . Kick 1 | . . . 1 Crush . | . . . . Escape Stasis . | . . . . Rewire . | . . . . Trap . | . . . . Miscellaneous . | . . . . Route ------- -11/Scrapyard -10/Materials -9/Materials -9/Storage History --------- Turn | Location | Event 6 | -11/Scrapyard | Discovered new exit (range 15) 61 | -11/Scrapyard | Entered Materials 281 | -10/Materials | Lost 3 parts (1p2w) 317 | -10/Materials | Build established: Mutant 468 | -10/Materials | Core integrity fell below 50% 673 | -10/Materials | Discovered new exit (range 15) 717 | -10/Materials | Identified exit to Materials 718 | -10/Materials | Entered another Materials area 718 | -9/Materials | Evolved 2 slots: Propulsion x2 819 | -9/Materials | Discovered new exit (range 14) 873 | -9/Materials | Identified exit to Storage 873 | -9/Materials | Entered Storage 882 | -9/Storage | Met a pair of Derelict thieves 960 | -9/Storage | Lost 4 parts (1n3w) 1050 | -9/Storage | Build established: Scavenger-Mutant 1072 | -9/Storage | Lost 4 parts (2n2w) 1396 | -9/Storage | Garrison activated, responded to threat 1457 | -9/Storage | Lost 3 parts (1p1u1w) 1458 | -9/Storage | Core integrity fell below 50% 1482 | -9/Storage | Core integrity fell below 20% 1488 | -9/Storage | Destroyed by G-34 Mercenary with Small Laser Last Messages --------------- 01422_ K-01 Serf collects debris. 01426_ EMP Blaster destroyed. 01426_ Acquired 33 matter. 01426_ K-01 Serf collects debris. 01429_ U-05 Engineer builds a Wall. 01432_ U-05 Engineer lays Concrete. 01435_ R-06 Scavenger collects Aluminum Leg. 01436_ U-05 Engineer lays Concrete. 01454_ BD 0 O3%LVPURL 9OT6I17 01457_ Carbon-fiber Leg destroyed. 01457_ Ion Engine destroyed. 01458_ G-34 Mercenary destroyed. 01458_ Carbon-fiber Leg destroyed. 01459_ K-01 Serf collects debris. 01462_ Carbon-fiber Leg destroyed. 01463_ Lgt. Armor Plating destroyed. 01463_ Slammed into G-34 Mercenary. 01469_ Beam Rifle destroyed. 01478_ Aluminum Leg destroyed. 01480_ Hvy. Assault Rifle destroyed. Map ----- +----------------------------------------------------+ | | | ????????????????????????????????? | | ????????????????????????????????? | | ????????????????????????????????? | | ????????????????????????????????? | | ????????????????????????????????? | | ????????????????????????????????? | | ????????????????????????????????? | | ????????????????????????????????? | | ????????????????????????????????? | | ???????????????????????? ?????? | | ???????????????????????? ?????? | | ???????????????????????? #????? | | ???????????????????????+ #????? | | ???????????????????????# #????? | | ???????????????????????# #????? | | ???????????????????????# #????? | | ???????????????????????#m #????? | | ???????????????????????# #????? | | ???????????????????????# #????? | | ???????????????????????# #????? | | ???????????????????????# #????? | | ???????????? #?????????# #????? | | ??????????## #?????????# #????? | | ?????????? #?????????# #????? | | ?????????? +?????????#r@ #????? | | ?????????# #?????????# #????? | | ?????????# ?????????# #????? | | ?????????# #?????????# #????? | | ?????????# #########?# #????? | | #"""#????# #? ?# #????? | | T #????# #?"T" # #????? | | # #?#### # """ #g #????? | | ###/###" # # """ + gg#????? | | ## % # """ #ggg#????? | | != #? # #????? | | = # ?# gg#????? | | ### # ?# #????? | | ## ### ## #####??#Y #????? | | ?###/###?# ##????????# k #????? | | ??? # #?????????# % ###??? | | ## #?????????# ""#??? | | ]## #?????????# ""#??? | | ## ##??###???# T"#??? | | [[! """ # ####T##### ""#??? | | [[ G" # ""#??? | | [[ """ # T ! ###??? | | ?? # *%[ #????? | | ####????# ####+######"##????? | | ????????###+###?? ???? ?????? | +----------------------------------------------------+ Best States ------------- Heat Dissipation 42 Energy Generation 12 Energy Capacity 265 Matter Stores 300 Matter Capacity 300 Sight Range 16 Terrain Scan Density 10 Armor Coverage 150 Evasion (%) 40 Item Schematics ----------------- None Robot Schematics ------------------ None Fabricated ------------ Nothing Alien Tech Used ----------------- None Achievements -------------- None Challenges ------------ None Game ------ Seed DimensionalDerelictStreamer Manual? 0 Play Time 00:22:09 Cumulative 63.2 hours Start 2021.12.07 @ 16:00:01 End 2021.12.07 @ 16:21:46 Sessions 1 Manual Loads 0 Difficulty Rogue Special Mode None Game No. 79 Rogue 79 Adventurer 0 Explorer 0 Win Type - Total 0 Types 0/0/0/0/0/0/0/0/0 Lore% 36 Gallery% 35 Achievement% 23 Wizard Run 0 Options --------- ASCII 0 Keyboard 1 Movement Vi Keybinds 0 Fullscreen 0 Font 20/SmallcapsGlow Map View 76x50 Tactical HUD 1 Map Filters NONE Filters NONE Steam 1 RUN: 6d45b07f-dea6-452f-993f-0965e91e8a21